bitfinex-derivatives/quotes_ETHF0:USTF0_20250804
["timestamp","ask_amount","ask_price","bid_price","bid_amount"]
[1754281945880,28.1047063,3553.0,3552.9,1.17284252]
[1754281947278,28.1047063,3553.0,3552.9,2.30524252]
[1754281947875,28.1268063,3553.0,3552.9,0.91694252]
[1754281948071,8.7377063,3553.0,3552.9,1.92444252]
[1754281948378,27.4419063,3553.0,3552.9,2.57454252]
[1754281949376,8.0750878,3553.0,3552.9,2.57454252]
[1754281949580,27.4420878,3553.0,3552.9,2.57454252]
[1754281951779,26.66561164,3553.0,3552.9,2.57454252]
[1754281952277,26.48865963,3553.0,3552.9,2.57454252]
[1754281952579,3.2078,3553.4,3553.3,0.839]
[1754281952878,4.16230004,3553.4,3553.3,2.0409]
[1754281954474,5.15990004,3553.4,3553.3,2.0409]
[1754281954674,5.77010004,3553.4,3553.3,2.0409]
[1754281958682,5.42910004,3553.4,3553.3,2.0409]
[1754281960080,5.15990004,3553.4,3553.3,2.0409]
[1754281961093,0.95450004,3553.4,3553.3,2.0409]
[1754281961386,0.17698775,3553.4,3553.3,2.0409]
[1754281962487,0.17698775,3553.4,3553.3,5.95475963]
[1754281962785,3.2078,3554.2,3554.1,2.0409]
[1754281962986,23.34728416,3554.2,3554.1,2.0409]
[1754281963489,23.5674,3554.2,3554.1,2.0409]
[1754281963678,22.8704,3554.2,3554.1,2.0409]
[1754281963996,3.2078,3554.2,3554.1,2.0409]
[1754281964284,23.50315991,3554.4,3554.2,1.2331]
[1754281964584,23.27485963,3554.4,3554.3,1.6238]
[1754281964888,26.30574703,3554.4,3554.3,2.0736]
[1754281965383,25.52918963,3554.4,3554.3,1.6238]
[1754281965586,1.6333,3554.0,3553.9,1.6238]
[1754281965888,6.02075963,3554.0,3553.9,2.0736]
[1754281966481,6.02075963,3554.0,3553.9,1.6238]
[1754281968093,6.02075963,3554.0,3553.9,2.0736]
[1754281968293,5.60555963,3554.0,3553.9,2.0736]
[1754281968587,0.54209011,3554.5,3554.4,0.8405]
[1754281968784,20.13316249,3554.5,3554.4,2.0736]
[1754281968986,19.357,3554.5,3554.4,2.0736]
[1754281970497,0.56263,3554.4,3554.1,0.3863]
[1754281970687,5.33998963,3554.4,3554.3,0.8405]
[1754281970887,5.33998963,3554.4,3554.3,2.0736]
[1754281971195,6.16818963,3554.4,3554.3,2.0736]
[1754281971698,6.02075963,3554.4,3554.3,2.0736]
[1754281973595,6.02075963,3554.4,3554.3,0.7833]
[1754281973798,6.02075963,3554.4,3554.3,0.3863]
[1754281974500,2.1069,3554.2,3554.1,0.7833]
[1754281974797,2.1069,3554.2,3554.1,1.3295]
[1754281974995,2.1069,3554.2,3554.1,1.6238]
[1754281975196,2.1069,3554.2,3554.1,2.0736]
[1754281977285,19.354,3554.3,3554.1,2.0736]
[1754281977494,19.354,3554.3,3554.1,0.8405]
[1754281977791,19.354,3554.3,3554.2,2.0736]
[1754281977989,3.6814,3554.6,3554.4,2.0736]
[1754281977990,19.353,3554.5,3554.4,2.0736]
[1754281979097,19.353,3554.5,3554.4,2.63623]
[1754281979286,19.352,3554.8,3554.4,0.8405]
[1754281979591,19.352,3554.8,3554.6,0.8405]
[1754281979592,2.1014,3554.7,3554.6,0.8405]
[1754281979796,1.6862,3554.7,3554.6,2.0736]
[1754281982401,2.1014,3554.7,3554.6,2.0736]
[1754281983893,2.1014,3554.7,3554.6,0.3863]
[1754281984093,0.5626,3554.6,3554.4,0.397]
[1754281984292,6.01525963,3554.5,3554.4,1.0506]
[1754281984491,6.01525963,3554.5,3554.4,2.0736]
[1754281984690,9.22305963,3554.5,3554.4,1.3295]
[1754281984908,9.22305963,3554.5,3554.1,0.4498]
[1754281984909,0.8635,3554.2,3554.1,2.0736]
[1754281985206,1.6862,3554.2,3554.1,2.0736]
[1754281986496,2.1014,3554.2,3554.1,2.0736]
[1754281987097,1.6862,3554.2,3554.1,2.0736]
[1754281988603,19.9391,3554.2,3554.1,2.0736]
[1754281988799,19.6627,3554.2,3554.1,2.0736]
[1754281990004,20.7618,3554.2,3554.1,2.0736]
[1754281990305,21.4504,3554.2,3554.1,2.0736]
[1754281991200,22.22850715,3554.2,3554.1,2.0736]
[1754281991607,0.56272,3553.9,3553.7,3.2078]
[1754281991898,1.2126,3553.6,3553.5,0.8405]
[1754281992094,1.3371,3553.6,3553.5,1.2903]
[1754281992300,1.3371,3553.6,3553.5,2.0736]
[1754281993199,1.6862,3553.6,3553.5,2.0736]
[1754281993900,2.4646063,3553.6,3553.5,2.0736]
[1754281994400,1.6862,3553.6,3553.5,2.0736]
[1754281994906,19.347,3553.7,3553.5,2.0736]
[1754281995107,20.3504,3553.7,3553.6,2.1094]
[1754281995299,19.6539,3553.7,3553.6,2.1094]
[1754281995502,19.347,3553.7,3553.6,2.1094]
[1754281996796,20.3504,3553.7,3553.6,2.1094]
[1754281996997,20.9578,3553.7,3553.6,2.1094]
[1754281997698,20.6179,3553.7,3553.6,2.1094]
[1754281997900,4.668,3553.6,3551.9,3.54083872]
[1754281998100,36.25403192,3553.7,3551.5,1.1417]
[1754281998101,3.91385963,3552.0,3551.5,1.1417]
[1754281998406,4.55335963,3551.6,3551.5,1.2556]
[1754281998604,20.65358,3551.6,3551.5,1.2556]
[1754281998904,27.90064489,3551.6,3551.5,0.5717]
[1754281999099,27.1011873,3551.6,3551.5,0.5717]
[1754281999302,27.1011873,3551.6,3551.5,1.2556]
[1754281999506,26.1534073,3551.6,3551.5,1.7134]
[1754282000406,26.1534073,3551.6,3551.5,2.1094]
[1754282001304,0.81801,3550.8,3550.7,0.846]
[1754282001602,20.32301,3550.8,3550.7,2.1094]
[1754282001908,19.7598,3550.8,3550.7,2.1094]
[1754282004808,19.7568,3550.8,3550.7,2.1094]
[1754282008304,20.32001,3550.8,3550.7,2.1094]
[1754282008600,19.7568,3550.8,3550.7,2.1094]
[1754282008908,19.7458,3550.8,3550.7,2.1094]
[1754282009505,3.2078,3551.5,3551.1,1.82656]
[1754282009711,4.02563,3551.9,3551.8,2.1094]
[1754282010011,23.52263,3551.9,3551.8,2.1094]
[1754282010206,22.9626,3551.9,3551.8,2.1094]
[1754282010806,22.9606,3551.9,3551.8,2.1094]
[1754282011208,22.7058,3551.9,3551.8,2.1094]
[1754282011909,3.2078,3551.9,3551.8,2.1094]
[1754282012107,19.496,3552.1,3552.0,0.3029]
[1754282012309,19.496,3552.2,3552.1,2.6724]
[1754282012609,3.2078,3552.3,3552.2,2.1094]
[1754282012812,3.2078,3552.7,3552.6,2.67231]
[1754282013106,3.2078,3552.7,3552.6,2.1094]
[1754282014807,20.06386,3553.0,3552.6,0.846]
[1754282015011,0.8292,3552.8,3552.7,2.1094]
[1754282015216,1.657,3552.8,3552.7,2.1094]
[1754282024119,1.2709,3552.8,3552.7,2.1094]
[1754282025719,1.7054,3552.8,3552.7,2.1094]
[1754282040133,2.51126376,3552.8,3552.7,2.1094]
[1754282040334,19.395,3553.4,3553.2,0.8414]
[1754282040538,0.80595683,3553.3,3553.2,2.2007]
[1754282040736,0.80595683,3553.6,3553.5,2.76348]
[1754282041033,10.67458853,3553.6,3553.5,2.2007]
[1754282041230,10.11182853,3553.6,3553.5,2.2007]
[1754282041431,2.99255683,3553.6,3553.5,2.2007]
[1754282041732,2.55995683,3553.6,3553.5,2.2007]
[1754282041933,0.80595683,3553.6,3553.5,2.2007]
[1754282042231,0.80595683,3553.6,3553.5,6.1121717]
[1754282042433,0.80595683,3553.9,3553.8,1.40413]
[1754282042626,0.80595683,3553.9,3553.8,2.76343]
[1754282042825,0.80595683,3553.9,3553.8,6.6749017]
[1754282043031,0.80595683,3554.3,3554.2,1.40407]
[1754282043232,0.80595683,3554.3,3554.2,2.76337]
[1754282043844,0.80595683,3554.4,3554.3,2.2007]
[1754282044432,19.399,3554.5,3554.4,0.85433]
[1754282044638,0.7027,3554.7,3554.6,1.404]
[1754282044840,1.1675,3554.7,3554.6,2.7633]
[1754282045234,1.1675,3554.7,3554.6,2.2007]
[1754282045630,1.754,3554.7,3554.6,2.2007]
[1754282045836,2.1866,3554.7,3554.6,2.2007]
[1754282047038,1.754,3554.7,3554.6,2.2007]
[1754282047238,19.388,3554.8,3554.6,2.2007]
[1754282047442,19.388,3554.8,3554.7,2.2007]
[1754282047644,21.142,3554.8,3554.7,2.2007]
[1754282048942,22.13717,3554.8,3554.7,1.7279]
[1754282049541,1.3195,3554.5,3554.4,2.2007]
[1754282049843,1.754,3554.5,3554.4,2.2007]
[1754282050044,0.8547,3554.6,3554.5,2.2007]
[1754282050244,1.754,3554.6,3554.5,2.2007]
[1754282050642,2.1866,3554.6,3554.5,2.2007]
[1754282050845,19.95057,3554.8,3554.5,2.2007]
[1754282051145,1.754,3554.6,3554.5,0.8414]
[1754282051543,1.754,3554.6,3554.5,2.2007]
[1754282054948,2.1478,3554.6,3554.5,2.2007]
[1754282055449,1.754,3554.6,3554.5,2.2007]
[1754282055639,1.7086,3554.6,3554.5,2.2007]
[1754282057852,2.1024,3554.6,3554.5,2.2007]
[1754282059154,1.7086,3554.6,3554.5,2.2007]
[1754282060754,20.6194,3554.8,3554.7,0.8592]
[1754282061052,21.1017,3554.8,3554.7,2.1792]
[1754282061450,19.388,3554.8,3554.7,2.1792]
[1754282061855,0.563,3552.1,3552.0,3.52443872]
[1754282062152,1.40756,3552.0,3550.8,0.4295]
[1754282062450,7.1192717,3551.0,3550.9,0.4295]
[1754282062651,3.2078,3551.0,3550.9,2.1792]
[1754282062851,4.04058378,3551.0,3550.9,2.1792]
[1754282063348,3.2078,3551.0,3550.9,2.1792]
[1754282063554,4.07789653,3551.0,3550.9,2.1792]
[1754282064145,3.2078,3551.0,3550.9,2.1792]
[1754282064542,3.77097,3551.0,3550.9,2.1792]
[1754282067753,3.2078,3551.0,3550.9,2.1792]
[1754282069650,0.56314,3551.2,3551.1,0.546]
[1754282069857,0.56314,3551.2,3551.1,2.1792]
[1754282070454,0.56313,3551.3,3551.2,2.1792]
[1754282070755,3.77091,3551.4,3551.3,2.1792]
[1754282070969,3.2078,3551.4,3551.3,2.1792]
[1754282084068,0.56306,3551.8,3551.4,1.736]
[1754282084069,0.626,3551.5,3551.4,1.736]
[1754282084373,0.626,3551.5,3551.4,2.531]
[1754282084563,1.18909,3551.5,3551.4,2.531]
[1754282084958,0.626,3551.5,3551.4,2.531]
[1754282086772,0.8216,3551.5,3551.4,2.531]
[1754282089072,1.70356398,3551.5,3551.4,2.531]
[1754282092073,3.21588611,3551.5,3551.4,2.531]
[1754282094175,1.70356398,3551.5,3551.4,2.531]
[1754282094373,0.88196398,3551.5,3551.4,2.531]
[1754282094875,2.39329109,3551.5,3551.4,2.531]
[1754282096272,2.39354726,3551.5,3551.4,2.531]
[1754282096874,1.51158328,3551.5,3551.4,2.531]
[1754282097080,2.37470941,3551.5,3551.4,2.531]
[1754282099272,2.68770941,3551.5,3551.4,2.531]
[1754282099473,2.88330941,3551.5,3551.4,2.531]
[1754282101076,3.19630941,3551.5,3551.4,2.531]
[1754282105383,1.68472613,3551.5,3551.4,2.531]
[1754282107682,0.8216,3551.2,3551.1,0.5311]
[1754282107886,1.88032613,3551.2,3551.1,1.60315]
[1754282108079,1.88032613,3551.2,3551.1,1.04]
[1754282109188,1.88032613,3551.2,3551.1,1.8748]
[1754282109784,1.88032613,3551.2,3551.1,1.3437]
[1754282109987,1.88032613,3551.2,3551.1,2.189]
[1754282112083,1.88032613,3551.2,3551.1,2.531]
[1754282112484,1.68472613,3551.2,3551.1,2.531]
[1754282113786,1.68552613,3551.2,3551.1,2.531]
[1754282113987,1.68682613,3551.2,3551.1,2.531]
[1754282114588,1.48992613,3551.2,3551.1,2.531]
[1754282117790,0.86312613,3551.2,3551.1,2.531]
[1754282120691,0.86432613,3551.2,3551.1,2.531]
[1754282121493,1.32042613,3551.2,3551.1,2.531]
[1754282122289,3.2078,3551.4,3551.0,0.56316]
[1754282122290,3.2078,3551.4,3551.3,0.9404]
[1754282122494,4.05349465,3551.4,3551.3,4.85436671]
[1754282122790,4.05349465,3551.4,3551.3,6.33986671]
[1754282125395,4.05469465,3551.4,3551.3,6.33986671]
[1754282125588,4.79149465,3551.4,3551.3,6.33986671]
[1754282126090,1.58369465,3551.4,3551.3,6.33986671]
[1754282126291,1.5836891,3551.4,3551.3,6.33986671]
[1754282126594,1.4082891,3551.4,3551.3,6.33986671]
[1754282127195,1.1275891,3551.4,3551.3,6.33986671]
[1754282127396,0.2819,3551.4,3551.3,6.33986671]
[1754282127695,0.2819,3551.4,3551.3,2.4259]
[1754282127994,1.12757636,3551.4,3551.3,2.4259]
[1754282128496,0.2819,3551.4,3551.3,2.4259]
[1754282128693,0.738,3551.6,3551.5,0.9404]
[1754282128898,1.58366356,3551.6,3551.5,2.4259]
[1754282129096,1.58566356,3551.6,3551.5,2.4259]
[1754282134302,1.40826356,3551.6,3551.5,2.4259]
[1754282134795,1.58566356,3551.6,3551.5,2.4259]
[1754282137305,0.5634,3551.4,3551.3,0.88512]
[1754282137497,3.9478,3551.4,3551.3,2.48712]
[1754282137905,3.9478,3551.4,3551.3,2.98902]
[1754282141403,3.7724,3551.4,3551.3,2.98902]
[1754282143810,3.9316,3551.4,3551.3,2.98902]
[1754282144409,3.7724,3551.4,3551.3,2.98902]
[1754282146510,3.9316,3551.4,3551.3,2.98902]
[1754282148016,0.7238,3551.4,3551.3,2.98902]
[1754282149112,0.5646,3551.4,3551.3,2.98902]
[1754282149510,0.5626,3551.4,3551.3,2.98902]
[1754282150010,0.7218,3551.4,3551.3,2.98902]
[1754282150414,0.7237,3551.4,3551.3,3.03792]
[1754282150713,1.56859293,3551.4,3551.3,3.03792]
[1754282152312,1.56850874,3551.4,3551.3,3.03792]
[1754282155217,1.54250874,3551.4,3551.3,3.03792]
[1754282157813,1.94522874,3551.4,3551.1,0.56315]
[1754282158013,1.41910874,3551.3,3551.2,1.002]
[1754282158217,1.67570874,3551.3,3551.2,1.002]
[1754282158724,1.26180874,3551.3,3551.2,0.5104]
[1754282158914,1.65240874,3551.3,3551.2,1.002]
[1754282160217,1.65240874,3551.3,3551.2,2.1489]
[1754282160417,0.4827,3551.1,3551.0,1.346]
[1754282160617,4.83700874,3551.1,3551.0,1.8271]
[1754282160813,4.68670874,3551.1,3551.0,2.4748]
[1754282162322,4.68670874,3551.1,3551.0,1.002]
[1754282162523,4.83700874,3551.1,3551.0,1.002]
[1754282162822,4.83700874,3551.1,3551.0,1.4831]
[1754282163523,4.83700874,3551.1,3551.0,1.8271]
[1754282164532,4.83700874,3551.1,3551.0,2.1489]
[1754282164819,0.0012,3551.0,3550.3,23.2689]
[1754282165023,0.6341,3550.9,3550.8,0.56319]
[1754282165318,0.84407689,3550.9,3550.7,0.56322]
[1754282165516,1.32677689,3550.8,3550.7,1.55492]
[1754282165824,1.32677689,3550.8,3550.7,3.03802]
[1754282166122,1.47817689,3550.8,3550.7,3.03802]
[1754282167425,0.6341,3550.8,3550.7,3.03802]
[1754282168524,1.47752663,3550.8,3550.7,3.03802]
[1754282169323,0.6341,3550.8,3550.7,3.03802]
[1754282170222,0.84316268,3551.0,3550.9,0.56319]
[1754282170421,0.84316268,3551.0,3550.9,3.03799]
[1754282172125,3.2078,3551.1,3550.9,3.03799]
[1754282172321,3.2078,3551.1,3551.0,2.4748]
[1754282172518,4.05070971,3551.1,3551.0,2.4748]
[1754282173625,3.2078,3551.1,3551.0,2.4748]
[1754282176427,3.209,3551.1,3551.0,2.4748]
[1754282176830,3.4494,3551.1,3551.0,2.4748]
[1754282177128,3.5908,3551.1,3551.0,2.4748]
[1754282178423,4.43952264,3551.1,3551.0,2.4748]
[1754282180030,4.66752264,3551.1,3551.0,2.4748]
[1754282180530,4.80892264,3551.1,3551.0,0.5104]
[1754282181540,4.80892264,3551.1,3551.0,1.3299]
[1754282181831,4.80892264,3551.1,3551.0,2.4505]
[1754282182829,4.66752264,3551.1,3551.0,2.4505]
[1754282186727,4.05652264,3551.1,3551.0,2.4505]
[1754282186933,0.84872264,3551.1,3551.0,2.4505]
[1754282188236,0.84952264,3551.1,3551.0,2.4505]
[1754282188435,0.84872264,3551.1,3551.0,2.4505]
[1754282190830,0.84952264,3551.1,3551.0,2.4505]
[1754282191527,0.84872264,3551.1,3551.0,2.4505]
[1754282192934,0.84872264,3551.1,3551.0,5.77663721]
[1754282193738,0.84952264,3551.1,3551.0,5.77663721]
[1754282193930,1.06272264,3551.1,3551.0,5.77663721]
[1754282194136,4.61822264,3551.1,3551.0,2.4505]
[1754282195440,4.75142264,3551.1,3551.0,0.5104]
[1754282195937,4.75142264,3551.1,3550.7,0.4842]
[1754282195938,1.1249,3550.8,3550.7,0.4842]
[1754282196239,0.5617,3550.4,3550.3,1.9401]
[1754282196536,3.7695,3550.4,3550.3,1.9401]
[1754282196731,3.7695,3550.4,3550.3,2.4243]
[1754282199639,4.62057771,3550.4,3550.3,2.4243]
[1754282200438,3.7695,3550.4,3550.3,2.4243]
[1754282201942,3.2078,3550.4,3550.3,2.4243]
[1754282203539,3.2086,3550.4,3550.3,2.4243]
[1754282203843,3.555,3550.4,3550.3,2.4243]
[1754282204142,3.2086,3550.4,3550.3,2.4243]
[1754282206844,3.5457,3550.4,3550.3,2.4243]
[1754282207044,3.744,3550.4,3550.3,2.4243]
[1754282208045,3.2097,3550.4,3550.2,0.56328]
[1754282208338,0.5205,3550.0,3549.9,1.01409879]
[1754282208547,4.5791679,3550.0,3549.9,2.15519879]
[1754282208739,4.5791679,3550.0,3549.9,3.39189879]
[1754282210544,3.7283,3550.0,3549.9,3.39189879]
[1754282211647,3.6044,3550.0,3549.9,3.39189879]
[1754282211848,3.2078,3550.0,3549.9,3.39189879]
[1754282216547,3.2078,3550.0,3549.9,3.95524879]
[1754282217149,3.2078,3550.0,3549.9,3.39189879]
[1754282217354,3.4061,3550.0,3549.9,3.39189879]
[1754282217649,3.7283,3550.0,3549.9,3.39189879]
[1754282220651,3.7283,3550.0,3549.9,3.46268673]
[1754282222049,3.8523,3550.0,3549.9,1.58328673]
[1754282222448,3.8523,3550.0,3549.9,1.08488673]
[1754282222643,4.70211568,3550.0,3549.9,1.08488673]
[1754282222841,4.70211568,3550.0,3549.9,1.58328673]
[1754282223047,3.8523,3550.0,3549.9,1.58328673]
[1754282224450,4.70232547,3550.0,3549.9,2.03968673]
[1754282224850,4.45442547,3550.0,3549.9,2.98208673]
[1754282225052,4.57832547,3550.0,3549.9,3.46268673]
[1754282225652,3.7283,3550.0,3549.9,3.46268673]
[1754282227559,4.57885206,3550.0,3549.9,3.46268673]
[1754282232562,4.05835206,3550.0,3549.9,0.83698673]
[1754282232767,7.97450366,3550.0,3548.7,1.8972]
[1754282233058,3.2078,3549.0,3548.9,2.3778]
[1754282233263,3.2078,3549.0,3548.3,1.02]
[1754282233264,0.5635,3548.9,3548.3,1.02]
[1754282233462,3.9161516,3548.6,3548.5,1.5797]
[1754282233661,3.9161516,3548.6,3548.5,1.8794]
[1754282233966,3.9161516,3548.6,3548.5,2.3541]
[1754282234363,0.56353,3548.8,3548.5,2.3541]
[1754282234662,7.1239516,3549.0,3548.8,2.3215]
[1754282234861,7.1239516,3549.0,3548.9,2.3215]
[1754282239869,0.6065,3548.8,3547.8,0.56367]
[1754282240164,8.4198216,3548.5,3548.4,1.3758]
[1754282240370,4.50367,3548.5,3548.4,1.3758]
[1754282240668,8.4198216,3548.5,3548.4,1.3758]
[1754282241265,7.8562516,3548.5,3548.4,1.3758]
[1754282241466,3.2078,3548.5,3548.4,1.3758]
[1754282241659,3.7835,3549.0,3548.9,1.3758]
[1754282241967,3.7835,3549.0,3548.9,2.3215]
[1754282242162,3.9401,3549.0,3548.9,2.3215]
[1754282242362,4.39,3549.0,3548.9,2.3215]
[1754282242759,4.39,3549.0,3548.9,1.8821]
[1754282243277,0.7323,3548.3,3548.2,2.8851]
[1754282243574,4.6484516,3548.3,3548.2,2.8851]
[1754282243866,4.2413516,3548.3,3548.2,0.6365]
[1754282244071,0.3252,3548.3,3548.2,2.3215]
[1754282244272,3.2078,3548.4,3548.3,0.9364]
[1754282244472,8.1495516,3548.4,3548.3,2.3215]
[1754282244867,8.3061516,3548.4,3548.3,2.3215]
[1754282245181,0.4499,3548.0,3547.1,3.2078]
[1754282245473,4.2413516,3547.2,3547.1,0.9364]
[1754282245669,4.6484516,3547.2,3547.1,2.3215]
[1754282246373,5.0983516,3547.2,3547.1,2.3215]
[1754282246577,8.3061516,3547.2,3547.1,2.3215]
[1754282246774,8.3061516,3547.2,3547.1,1.8821]
[1754282246977,8.3061516,3547.2,3547.1,0.9457]
[1754282247176,0.7323,3547.0,3546.9,1.32325651]
[1754282247376,1.1822,3547.0,3546.9,3.33645651]
[1754282249580,0.4499,3547.5,3547.0,0.56381]
[1754282249776,0.5757,3547.2,3547.1,1.8505]
[1754282250076,1.1822,3547.2,3547.1,2.3215]
[1754282251276,4.39,3547.2,3547.1,0.7477]
[1754282251470,1.1822,3547.0,3546.9,1.48965651]
[1754282251667,5.0983516,3547.0,3546.9,3.33645651]
[1754282252679,4.4918516,3547.0,3546.9,3.33645651]
[1754282253178,4.2413516,3547.1,3547.0,2.3215]
[1754282253569,4.6484516,3547.1,3547.0,2.3215]
[1754282254481,5.6621416,3547.1,3547.0,2.3215]
[1754282254680,5.0983516,3547.1,3547.0,2.3215]
[1754282255779,5.0983516,3547.1,3547.0,1.8821]
[1754282255979,1.1822,3547.0,3546.9,1.01495651]
[1754282256177,1.1822,3547.0,3546.9,2.59715651]
[1754282256383,1.1822,3547.0,3546.9,3.33645651]
[1754282257284,0.7323,3547.0,3546.9,3.33645651]
[1754282259787,0.5757,3547.0,3546.9,3.33645651]
[1754282259985,0.7267,3547.0,3546.9,3.33645651]
[1754282260180,3.9161516,3547.1,3546.9,3.33645651]
[1754282260486,0.3252,3547.0,3546.9,3.33645651]
[1754282260685,0.5667,3547.0,3546.9,3.33645651]
[1754282260885,0.7177,3547.0,3546.9,3.33645651]
[1754282264282,0.5667,3547.0,3546.9,3.33645651]
[1754282264484,0.3252,3547.0,3546.9,3.33645651]
[1754282265788,0.7103,3547.0,3546.9,3.33645651]
[1754282266176,0.7111,3547.0,3546.9,3.33645651]
[1754282267084,3.2078,3547.2,3547.1,0.9241]
[1754282267384,3.9161516,3547.2,3547.1,1.48788]
[1754282267587,3.9161516,3547.2,3547.1,2.85738]
[1754282267781,4.4659516,3547.2,3547.1,1.3785]
[1754282267981,4.4667516,3547.2,3547.1,1.84]
[1754282268187,4.2289516,3547.2,3547.1,2.2936]
[1754282268585,4.6148516,3547.2,3547.1,2.2936]
[1754282268786,0.6987,3547.0,3546.9,2.85415651]
[1754282269293,0.6987,3547.0,3546.9,3.30855651]
[1754282269894,1.1586,3547.0,3546.9,3.30855651]
[1754282271095,2.00657696,3547.0,3546.9,3.30855651]
[1754282271990,2.00657696,3547.0,3546.9,2.84705651]
[1754282273185,2.00657696,3547.0,3546.9,3.30855651]
[1754282276598,1.54667696,3547.0,3546.9,3.30855651]
[1754282277299,2.55507138,3547.0,3546.9,3.30855651]
[1754282279402,1.54667696,3547.0,3546.9,3.30855651]
[1754282280299,0.84797696,3547.0,3546.9,3.30855651]
[1754282283502,1.16077696,3547.0,3546.9,3.30855651]
[1754282284904,0.84797696,3547.0,3546.9,3.30855651]
[1754282285206,5.07692856,3547.0,3546.9,3.30855651]
[1754282286107,5.22502856,3547.0,3546.9,3.30855651]
[1754282287308,5.46202856,3547.0,3546.9,3.30855651]
[1754282288597,5.46282856,3547.0,3546.9,3.30855651]
[1754282291109,4.6148516,3547.0,3546.9,3.30855651]
[1754282291313,5.46634421,3547.0,3546.9,3.30855651]
[1754282292011,5.08044421,3547.0,3546.9,3.30855651]
[1754282292912,4.76764421,3547.0,3546.9,3.30855651]
[1754282296115,5.07694421,3547.0,3546.9,1.46935651]
[1754282296308,5.07694421,3547.0,3546.9,3.35755651]
[1754282296513,5.07694421,3547.0,3546.9,1.01495651]
[1754282296713,1.94879261,3547.0,3546.9,3.37805651]
[1754282297012,0.36729261,3547.0,3546.9,3.37805651]
[1754282297218,3.2078,3547.6,3547.5,2.3631]
[1754282297419,7.60591535,3547.6,3547.5,2.3631]
[1754282297717,7.8704516,3547.6,3547.5,2.3631]
[1754282298109,7.6876716,3547.6,3547.4,0.56373]
[1754282298313,1.3964,3547.5,3547.4,1.49473]
[1754282298514,1.39183,3547.5,3547.3,0.56375]
[1754282298717,5.7596516,3547.4,3547.3,1.03865]
[1754282298916,5.7596516,3547.4,3547.3,2.92685]
[1754282299517,5.3125516,3547.4,3547.3,2.92685]
[1754282299713,4.5344516,3547.4,3547.3,2.92685]
[1754282300217,3.9161516,3547.4,3547.3,2.92685]
[1754282300424,1.2653,3547.5,3547.4,2.92683]
[1754282300623,5.1814516,3547.5,3547.4,2.92683]
[1754282302526,3.9161516,3547.5,3547.4,2.92683]
[1754282302728,4.3533516,3547.5,3547.4,2.92683]
[1754282302924,3.9161516,3547.5,3547.4,2.92683]
[1754282306629,3.645,3547.6,3547.5,2.3631]
[1754282307129,3.9543,3547.6,3547.5,2.3631]
[1754282307525,4.2633,3547.6,3547.5,2.3631]
[1754282307925,4.3944,3547.6,3547.5,2.3631]
[1754282308126,4.2633,3547.6,3547.5,2.3631]
[1754282308325,3.2078,3548.0,3547.5,3.77241]
[1754282308531,4.2633,3548.0,3547.9,2.3631]
[1754282308729,4.6042,3548.0,3547.9,2.3631]
[1754282309029,5.45218467,3548.0,3547.9,2.3631]
[1754282310334,5.89928467,3548.0,3547.9,2.3631]
[1754282311635,5.89928467,3548.0,3547.9,1.8908]
[1754282312231,0.5683,3547.9,3547.3,0.4749]
[1754282312437,5.3125516,3547.4,3547.3,1.96966]
[1754282312934,5.7596516,3547.4,3547.3,1.52356]
[1754282313131,5.7596516,3547.4,3547.3,1.82506]
[1754282313335,5.7596516,3547.4,3547.3,2.92686]
[1754282313834,5.7596516,3547.4,3547.3,2.3631]
[1754282314436,5.3125516,3547.4,3547.3,2.3631]
[1754282314626,3.2078,3547.5,3547.4,2.92684]
[1754282315127,4.5344516,3547.7,3547.6,1.34011]
[1754282315326,5.8762416,3547.7,3547.6,2.3631]
[1754282315528,5.7596516,3547.7,3547.6,2.3631]
[1754282317138,6.60694652,3547.7,3547.6,2.3631]
[1754282320433,2.40726,3547.4,3547.3,1.8908]
[1754282320637,5.61506,3547.4,3547.3,1.8908]
[1754282321237,5.61506,3547.4,3547.3,2.3631]
[1754282321437,5.0513,3547.4,3547.3,2.3631]
[1754282321638,4.6042,3547.4,3547.3,2.3631]
[1754282323238,5.45207159,3547.4,3547.3,2.3631]
[1754282323536,4.67397159,3547.4,3547.3,2.3631]
[1754282324141,4.05567159,3547.4,3547.3,2.3631]
[1754282324743,3.2078,3547.4,3547.3,2.3631]
[1754282325540,3.5205,3547.4,3547.3,0.9598]
[1754282325742,4.4483,3547.4,3547.3,2.3418]
[1754282326042,4.5694,3547.4,3547.3,2.3418]
[1754282327240,5.41795644,3547.4,3547.3,2.3418]
[1754282327442,4.66345672,3547.4,3547.3,2.3418]
[1754282327643,3.8149,3547.4,3547.3,2.3418]
[1754282328144,5.10322737,3547.4,3547.3,2.3418]
[1754282328540,5.41802737,3547.4,3547.3,2.3418]
[1754282328739,5.10322737,3547.4,3547.3,2.3418]
[1754282329243,5.41522737,3547.4,3547.3,0.7899]
[1754282329551,5.84952737,3547.4,3547.3,0.9261]
[1754282329944,5.84952737,3547.4,3547.3,1.9916]
[1754282331547,5.84952737,3547.4,3547.3,1.5547]
[1754282333347,5.84952737,3547.4,3547.3,1.2397]
[1754282333644,9.76567897,3547.4,3547.3,1.5547]
[1754282333844,9.76567897,3547.4,3547.3,0.7885]
[1754282334144,1.7886,3547.2,3547.1,1.5182]
[1754282334349,2.63722737,3547.2,3547.1,1.8332]
[1754282334752,2.63722737,3547.2,3547.1,2.2976]
[1754282335952,2.20292737,3547.2,3547.1,2.2976]
[1754282336340,3.2078,3547.4,3547.1,2.2976]
[1754282336539,3.2078,3547.4,3547.3,2.2976]
[1754282337148,4.6415516,3547.7,3547.6,2.2976]
[1754282337347,5.49039612,3547.7,3547.6,2.2976]
[1754282337648,5.93009612,3547.7,3547.6,2.2976]
[1754282337852,6.11929612,3547.7,3547.6,2.2976]
[1754282338052,5.81179612,3547.7,3547.6,2.86131]
[1754282338249,5.05939612,3547.7,3547.6,2.86131]